bitfinex/quotes_SOLUSD_20240615
["timestamp","ask_amount","ask_price","bid_price","bid_amount"]
[1718435118976,9.8411,144.47,144.41,7.28]
[1718435119356,7.28,144.47,144.41,7.28]
[1718435120173,9.8411,144.47,144.41,7.28]
[1718435120386,7.28,144.46,144.41,7.28]
[1718435121575,7.28,144.47,144.41,7.28]
[1718435121750,7.683,144.48,144.42,0.17]
[1718435121948,7.28,144.47,144.42,0.68]
[1718435122348,9.841,144.47,144.42,0.68]
[1718435122577,7.28,144.47,144.42,0.68]
[1718435122779,7.6828,144.48,144.42,0.68]
[1718435123076,7.28,144.47,144.42,0.68]
[1718435124078,23.0454,144.5,144.42,0.68]
[1718435124274,7.28,144.49,144.43,7.28]
[1718435124470,2.5605,144.5,144.44,7.96]
[1718435124659,7.28,144.5,144.44,7.45]
[1718435124860,9.8405,144.5,144.45,7.28]
[1718435125077,14.9616,144.5,144.45,7.28]
[1718435125664,22.6432,144.5,144.45,7.28]
[1718435126378,9.8405,144.5,144.45,7.28]
[1718435126583,17.9229,144.51,144.45,7.28]
[1718435126584,7.6814,144.51,144.45,7.28]
[1718435126874,30.3236,144.51,144.45,7.28]
[1718435127188,32.8841,144.51,144.45,7.28]
[1718435127679,9.8405,144.51,144.45,7.28]
[1718435127859,14.9612,144.51,144.45,7.28]
[1718435128188,15.3623,144.51,144.45,7.28]
[1718435128359,22.6423,144.51,144.45,7.28]
[1718435128560,14.9612,144.51,144.46,0.51]
[1718435128866,2.5603,144.52,144.46,23.9663]
[1718435129067,14.9607,144.52,144.47,0.17]
[1718435129277,30.3218,144.52,144.47,0.17]
[1718435129570,2.5604,144.51,144.47,0.17]
[1718435130176,7.6806,144.52,144.47,0.17]
[1718435130487,14.9606,144.52,144.47,0.17]
[1718435130984,9.8402,144.52,144.47,7.45]
[1718435131157,7.28,144.52,144.48,0.17]
[1718435131368,9.8402,144.52,144.48,0.34]
[1718435131597,7.28,144.52,144.48,0.34]
[1718435132168,7.6803,144.53,144.48,0.34]
[1718435132387,18.7676463,144.55,144.48,0.34]
[1718435132593,14.9595,144.54,144.49,0.17]
[1718435132790,14.9596,144.54,144.49,0.34]
[1718435132987,14.9597,144.54,144.49,0.34]
[1718435133200,7.6797,144.54,144.49,0.34]
[1718435133493,9.8399,144.54,144.49,0.34]
[1718435133802,2.5599,144.54,144.49,7.62]
[1718435134009,7.6796,144.54,144.49,7.62]
[1718435134510,15.3591,144.54,144.49,7.62]
[1718435134710,2.5599,144.54,144.49,7.62]
[1718435134880,26.4468463,144.55,144.49,7.62]
[1718435135190,18.7675463,144.55,144.49,0.34]
[1718435135399,7.28,144.54,144.49,0.34]
[1718435135606,9.8398,144.54,144.49,0.34]
[1718435136802,0.8494463,144.55,144.5,0.17]
[1718435137013,0.8494463,144.55,144.5,0.51]
[1718435137311,10.6890463,144.55,144.51,0.17]
[1718435137597,7.28,144.53,144.49,0.17]
[1718435137798,7.28,144.53,144.49,0.51]
[1718435138298,7.28,144.53,144.49,0.34]
[1718435139478,7.28,144.52,144.49,0.34]
[1718435139976,23.8870463,144.55,144.46,22.4893]
[1718435139977,108.1294463,144.55,144.46,22.4893]
[1718435140187,7.28,144.5,144.46,22.4893]
[1718435140591,7.28,144.49,144.46,22.4893]
[1718435141898,115.6058,144.53,144.42,22.8111]
[1718435142106,7.28,144.46,144.42,22.8111]
[1718435143105,7.28,144.47,144.42,22.8111]
[1718435143303,7.28,144.47,144.43,0.68]
[1718435143515,7.28,144.48,144.43,0.68]
[1718435144111,7.28,144.46,144.42,22.8111]
[1718435146701,7.28,144.45,144.42,22.8111]
[1718435148105,7.6825,144.49,144.42,22.8111]
[1718435148308,7.28,144.47,144.42,22.8111]
[1718435149304,7.28,144.47,144.43,0.17]
[1718435149611,7.6819,144.5,144.43,0.68]
[1718435149908,7.28,144.48,144.43,0.68]
[1718435152412,17.922,144.52,144.43,7.96]
[1718435152714,7.28,144.49,144.45,0.17]
[1718435152899,7.28,144.49,144.45,0.68]
[1718435153090,2.5603,144.51,144.45,0.68]
[1718435153285,7.28,144.49,144.45,0.68]
[1718435154706,2.5602,144.52,144.46,16.1581]
[1718435154911,7.28,144.52,144.47,0.68]
[1718435155717,2.5602,144.52,144.47,0.68]
[1718435155893,7.28,144.51,144.47,0.68]
[1718435160420,8.5289463,144.55,144.47,14.3044]
[1718435160716,7.28,144.53,144.49,0.17]
[1718435161013,7.28,144.53,144.49,0.68]
[1718435161198,7.28,144.54,144.49,0.68]
[1718435161409,7.28,144.53,144.49,0.68]
[1718435162829,0.8494463,144.55,144.49,107.96]
[1718435163139,7.28,144.54,144.49,107.96]
[1718435163316,7.28,144.53,144.49,0.68]
[1718435165734,7.28,144.53,144.49,0.34]
[1718435165931,7.28,144.51,144.48,0.17]
[1718435166129,2.5598,144.54,144.48,0.68]
[1718435166327,7.28,144.52,144.48,0.68]
[1718435166532,3.4091463,144.55,144.48,0.68]
[1718435166734,7.28,144.53,144.48,0.68]
[1718435167416,0.8494463,144.55,144.48,0.68]
[1718435167621,7.28,144.54,144.5,0.17]
[1718435167915,7.28,144.54,144.5,0.68]
[1718435170740,0.8494463,144.55,144.5,0.68]
[1718435170928,7.28,144.54,144.5,0.68]
[1718435172142,0.8494463,144.55,144.52,0.17]
[1718435172341,0.8494463,144.55,144.52,0.68]
[1718435174616,0.8494463,144.55,144.52,0.34]
[1718435174821,0.8494463,144.55,144.51,16.4776]
[1718435174822,8.1294463,144.55,144.51,16.4776]
[1718435175023,7.28,144.53,144.51,16.4776]
[1718435175626,2.56,144.53,144.48,16.4776]
[1718435175826,23.0387,144.54,144.48,16.4776]
[1718435175827,7.28,144.52,144.48,16.4776]
[1718435176959,7.28,144.52,144.49,0.51]
[1718435177946,7.68,144.53,144.45,23.5095]
[1718435178251,7.28,144.5,144.45,16.2295]
[1718435178630,2.5602,144.52,144.45,16.2295]
[1718435178631,7.28,144.49,144.45,16.2295]
[1718435178832,7.28,144.48,144.45,16.2295]
[1718435181252,7.28,144.46,144.41,22.2589]
[1718435181548,7.28,144.46,144.41,29.5389]
[1718435181741,7.28,144.46,144.41,22.2589]
[1718435182048,7.28,144.45,144.41,22.2589]
[1718435182437,7.28,144.48,144.41,22.2589]
[1718435182639,7.6819,144.5,144.41,22.2589]
[1718435182837,7.28,144.46,144.41,29.5389]
[1718435183049,7.28,144.47,144.41,29.5389]
[1718435183572,7.28,144.47,144.42,0.34]
[1718435183748,7.28,144.47,144.43,0.34]
[1718435184242,7.28,144.46,144.43,0.34]
[1718435184440,7.28,144.45,144.43,0.34]
[1718435184638,9.0929,144.51,144.44,0.17]
[1718435184841,10.2408,144.52,144.44,0.34]
[1718435185078,7.28,144.48,144.45,0.34]
[1718435185362,7.28,144.47,144.45,0.34]
[1718435186267,7.28,144.46,144.42,0.17]
[1718435186568,23.0485,144.48,144.42,0.68]
[1718435186569,7.28,144.45,144.42,0.68]
[1718435187037,7.28,144.45,144.41,22.2589]
[1718435187236,7.28,144.44,144.41,16.2295]
[1718435187471,7.28,144.44,144.37,14.77943215]
[1718435187472,7.28,144.43,144.37,22.2589]
[1718435187759,25.6128,144.46,144.37,29.5389]
[1718435187760,7.28,144.42,144.37,29.5389]
[1718435188453,7.28,144.41,144.37,22.2589]
[1718435188631,7.28,144.41,144.38,0.17]
[1718435188827,7.28,144.41,144.37,22.2589]
[1718435189233,100.0,144.52,144.37,122.2589]
[1718435189567,2.5609,144.48,144.41,7.28]
[1718435189870,7.28,144.46,144.41,7.28]
[1718435190560,7.28,144.46,144.37,51.78893215]
[1718435190561,7.28,144.46,144.4,0.34]
[1718435190766,7.28,144.45,144.4,7.62]
[1718435192451,7.28,144.45,144.4,0.34]
[1718435193048,7.28,144.47,144.41,0.51]
[1718435193257,7.28,144.47,144.42,0.17]
[1718435193579,7.28,144.46,144.42,0.17]
[1718435196271,7.28,144.46,144.42,0.34]
[1718435196757,7.28,144.46,144.43,0.34]
[1718435196953,7.6813,144.51,144.44,0.34]
[1718435197154,7.28,144.48,144.45,0.17]
[1718435197469,7.28,144.52,144.47,0.17]
[1718435197773,2.56,144.53,144.47,1.34396432]
[1718435198065,7.28,144.52,144.47,1.34396432]
[1718435198449,2.5604,144.51,144.45,0.17]
[1718435198650,7.6809,144.52,144.45,0.68]
[1718435198843,15.3615,144.52,144.45,0.68]
[1718435199061,2.5604,144.51,144.45,0.68]
[1718435199243,25.6023,144.52,144.45,0.68]
[1718435199644,2.5603,144.51,144.45,0.68]
[1718435199868,5.1209,144.51,144.45,0.68]
[1718435200166,7.6813,144.51,144.45,0.68]
[1718435200373,2.5604,144.51,144.45,0.68]
[1718435200571,7.6808,144.52,144.45,0.68]
[1718435200874,2.5604,144.51,144.45,0.68]
[1718435201556,25.6024,144.52,144.45,0.68]
[1718435201767,2.5603,144.51,144.45,0.68]
[1718435203068,25.6024,144.52,144.45,0.68]
[1718435203476,7.6809,144.52,144.45,0.68]
[1718435204061,2.5603,144.51,144.45,0.68]
[1718435204475,23.042,144.52,144.45,0.68]
[1718435204773,2.5603,144.51,144.45,0.68]
[1718435205572,25.6023,144.52,144.45,0.68]
[1718435206175,7.6809,144.52,144.45,0.68]
[1718435206973,145.05335841,144.55,144.45,0.68]
[1718435207175,2.5609,144.48,144.43,22.2589]
[1718435207358,23.0468,144.49,144.44,30.0]
[1718435207560,2.5609,144.48,144.44,30.0]
[1718435208169,2.5609,144.48,144.43,22.2589]
[1718435208480,25.6042,144.51,144.43,22.2589]
[1718435208674,2.5605,144.5,144.43,22.2589]
[1718435209064,7.6816,144.5,144.43,22.2589]
[1718435209259,2.5605,144.5,144.43,22.2589]
[1718435209460,7.6813,144.51,144.44,0.68]
[1718435210098,2.5605,144.51,144.44,0.68]
[1718435210380,2.5603,144.51,144.44,0.68]
[1718435210582,7.6809,144.52,144.44,0.68]
[1718435210986,15.3615,144.52,144.44,0.68]
[1718435211586,2.5603,144.51,144.44,0.68]
[1718435212463,15.3621,144.51,144.44,0.68]
[1718435212665,15.3603,144.53,144.44,100.68]
[1718435212865,12.8001,144.53,144.44,100.68]
[1718435213161,15.3613,144.52,144.44,100.68]
[1718435213377,2.5603,144.51,144.44,100.68]
[1718435213576,25.602,144.52,144.44,100.68]
[1718435214899,2.5603,144.51,144.44,100.68]
[1718435215698,25.602,144.52,144.44,100.68]
[1718435216092,2.5604,144.51,144.44,100.68]
[1718435217078,25.602,144.52,144.44,100.68]
[1718435218887,7.25,144.5,144.44,107.93]
[1718435220788,7.6803,144.53,144.46,7.25]
[1718435220970,7.25,144.52,144.48,16.3072]
[1718435221782,2.5599,144.54,144.48,16.3072]
[1718435221979,0.8494463,144.55,144.49,7.93]
[1718435222200,8.0994463,144.55,144.49,7.93]
[1718435222594,10.6590463,144.55,144.49,7.93]
[1718435222786,7.25,144.54,144.49,7.93]
[1718435226602,0.8494463,144.55,144.49,107.93]
[1718435226804,8.0994463,144.55,144.51,0.17]
[1718435226983,8.0994463,144.55,144.51,0.68]
[1718435227186,0.8494463,144.55,144.51,0.68]
[1718435228908,8.0994463,144.55,144.51,0.68]
[1718435229708,0.8494463,144.55,144.51,0.68]
[1718435229914,8.0994463,144.55,144.51,0.68]
[1718435231103,0.8494463,144.55,144.51,0.68]
[1718435231313,0.8494463,144.55,144.51,7.93]
[1718435231515,0.8494463,144.55,144.53,0.17]
[1718435231700,0.8494463,144.55,144.53,0.51]
[1718435236119,0.8494463,144.55,144.51,0.17]
[1718435236311,0.8494463,144.55,144.5,27.76]
[1718435236512,0.8494463,144.55,144.51,0.17]
[1718435237634,0.8494463,144.55,144.52,0.17]
[1718435237798,0.8494463,144.55,144.52,0.51]
[1718435241302,0.8494463,144.55,144.53,0.17]
[1718435241507,0.8494463,144.55,144.53,0.34]
[1718435242444,0.8494463,144.55,144.52,0.17]
[1718435242607,0.8494463,144.55,144.51,8.68023054]
[1718435242932,0.8494463,144.55,144.51,7.93]
[1718435250034,0.8494463,144.55,144.51,0.68]
[1718435251330,0.8494463,144.55,144.51,7.93]
[1718435255527,0.8494463,144.55,144.51,0.68]
[1718435256035,0.8494463,144.55,144.51,100.68]
[1718435258842,0.8494463,144.55,144.51,121.46]
[1718435260746,0.8494463,144.55,144.51,100.68]
[1718435260924,0.8494463,144.55,144.53,0.17]
[1718435261118,0.8494463,144.55,144.53,0.68]
[1718435261841,0.8494463,144.55,144.5,20.0]
[1718435262045,7.25,144.54,144.48,30.0098]
[1718435262225,3.4091463,144.55,144.48,30.0098]
[1718435262548,7.25,144.54,144.49,7.25]
[1718435262715,0.8494463,144.55,144.49,7.25]
[1718435262920,7.25,144.53,144.48,22.7598]
[1718435263135,7.25,144.53,144.48,30.0098]
[1718435263343,7.25,144.53,144.48,22.7598]
[1718435263519,7.25,144.53,144.48,30.0098]
[1718435264545,7.25,144.53,144.49,0.17]
[1718435264747,7.25,144.53,144.49,0.34]
[1718435266030,7.25,144.54,144.49,0.34]
[1718435267571,8.0994463,144.55,144.5,0.34]
[1718435267771,8.0994463,144.55,144.51,0.34]
[1718435267934,8.0994463,144.55,144.51,1.72364582]
[1718435269237,0.8494463,144.55,144.52,0.17]
[1718435269556,0.8494463,144.55,144.52,1.72345491]
[1718435269729,0.8494463,144.55,144.52,8.97345491]
[1718435269932,0.8494463,144.55,144.53,0.34]
[1718435270432,0.8494463,144.55,144.54,0.17]
[1718435270627,0.8494463,144.55,144.54,1.72335389]
[1718435270826,0.8494463,144.55,144.54,2.06335389]
[1718435271035,0.8494463,144.55,144.54,0.68]
[1718435281353,0.8494463,144.55,144.51,7.25]
[1718435281544,0.8494463,144.55,144.52,0.34]
[1718435281855,0.8494463,144.55,144.51,0.34]
[1718435282641,0.8494463,144.55,144.52,0.17]
[1718435282856,0.8494463,144.55,144.52,0.34]
[1718435283056,0.8494463,144.55,144.53,0.17]
[1718435283254,0.8494463,144.55,144.53,0.34]
[1718435284937,0.8494463,144.55,144.48,143.5398]
[1718435285139,7.25,144.54,144.48,122.7598]
[1718435285446,8.5284463,144.55,144.48,23.5572]
[1718435285641,7.25,144.54,144.48,23.5572]
[1718435285956,7.25,144.54,144.48,16.3072]
[1718435286160,7.25,144.54,144.48,23.5572]
[1718435286369,7.25,144.54,144.49,0.68]
[1718435286739,0.8494463,144.55,144.49,7.93]
[1718435286934,8.0994463,144.55,144.49,7.93]
[1718435287443,7.25,144.54,144.49,7.93]
[1718435287645,8.0994463,144.55,144.49,7.93]
[1718435290346,7.25,144.54,144.49,7.93]
[1718435290546,7.25,144.54,144.49,0.68]
[1718435294443,7.25,144.52,144.49,0.68]
[1718435295767,17.9215,144.52,144.44,121.8302]
[1718435295943,7.6812,144.51,144.44,121.8302]
[1718435296151,7.25,144.48,144.44,15.7829]
[1718435296368,7.25,144.47,144.41,27.39506994]
[1718435296878,7.25,144.47,144.41,34.64506994]
[1718435297366,7.25,144.47,144.41,21.8302]
[1718435297568,7.25,144.46,144.41,21.8302]
[1718435297759,7.25,144.46,144.41,29.0802]
[1718435298354,7.25,144.46,144.41,21.8302]
[1718435298555,2.5607,144.5,144.41,29.0802]
[1718435298762,7.25,144.47,144.41,29.0802]
[1718435299455,7.25,144.47,144.42,0.34]
[1718435299668,7.25,144.46,144.41,21.8302]
[1718435300467,7.25,144.46,144.41,29.0802]
[1718435301388,7.25,144.46,144.42,0.17]
[1718435301565,7.25,144.46,144.42,0.51]
[1718435302262,7.25,144.46,144.42,1.89217049]
[1718435302459,7.25,144.45,144.42,0.51]
[1718435302658,7.25,144.45,144.42,0.34]
[1718435302881,7.25,144.44,144.42,0.34]
[1718435303179,7.25,144.44,144.4,0.17]
[1718435303477,7.25,144.44,144.4,0.68]
[1718435304259,7.25,144.44,144.38,23.7195]
[1718435304458,7.25,144.43,144.38,23.7195]
[1718435304974,7.25,144.43,144.38,16.4695]
[1718435305487,7.25,144.43,144.39,0.34]
[1718435305682,7.25,144.43,144.39,0.68]
[1718435306187,25.6109,144.47,144.39,0.68]
[1718435306482,2.5609,144.48,144.39,100.68]
[1718435306686,7.25,144.46,144.41,7.42]
[1718435306859,7.25,144.46,144.42,0.34]
[1718435307387,7.25,144.46,144.42,1.72346689]
[1718435309081,7.25,144.45,144.42,0.17]
[1718435309663,7.25,144.45,144.41,0.34]
[1718435311393,7.25,144.44,144.41,0.34]
[1718435312765,2.561,144.48,144.41,0.34]
[1718435312967,7.25,144.44,144.41,0.34]
[1718435313596,7.25,144.45,144.41,0.34]
[1718435315178,2.5606,144.5,144.41,6.4375]
[1718435315383,7.25,144.46,144.43,0.17]
[1718435315694,7.25,144.47,144.43,0.34]
[1718435318065,7.25,144.46,144.43,0.34]
[1718435320872,7.25,144.45,144.43,0.34]
[1718435326498,29.0,144.48,144.43,0.34]
[1718435326682,7.25,144.45,144.43,0.34]
[1718435329813,7.6823,144.49,144.43,0.34]
[1718435329983,2.5608,144.49,144.43,8.34619835]
[1718435330183,7.25,144.46,144.43,8.34619835]
[1718435330511,7.25,144.47,144.44,0.17]
[1718435330710,7.25,144.47,144.44,0.34]
[1718435331225,7.25,144.46,144.44,0.34]
[1718435331521,7.25,144.47,144.44,0.34]
[1718435331682,7.6821,144.49,144.44,0.34]
[1718435331683,2.5607,144.49,144.44,0.34]
[1718435331882,30.4883,144.52,144.45,0.17]
[1718435332082,7.25,144.48,144.45,0.34]
[1718435332290,7.25,144.46,144.44,0.17]
[1718435332488,7.25,144.46,144.44,0.34]
[1718435332709,7.25,144.45,144.43,8.00619835]
[1718435333715,7.6824,144.49,144.43,8.00619835]
[1718435333891,7.25,144.45,144.43,8.00619835]
[1718435334104,7.25,144.46,144.43,8.00619835]
[1718435334506,15.3635,144.5,144.43,8.00619835]
[1718435334713,7.25,144.46,144.43,8.00619835]
[1718435335303,7.6819,144.5,144.43,8.00619835]
[1718435335500,2.5605,144.51,144.44,17.25855596]
[1718435335705,7.25,144.48,144.44,17.25855596]
[1718435335920,7.25,144.48,144.44,15.8741]
[1718435336101,7.25,144.49,144.44,15.8741]
[1718435338727,7.25,144.49,144.46,0.17]
[1718435338904,7.25,144.49,144.46,0.68]
[1718435339105,7.25,144.49,144.46,0.34]
[1718435339599,7.25,144.49,144.45,0.34]
[1718435339924,7.25,144.49,144.46,0.34]
[1718435340121,7.25,144.49,144.46,0.17]
[1718435340524,7.25,144.48,144.46,0.17]
[1718435346534,7.25,144.48,144.45,0.34]
[1718435346930,7.25,144.48,144.44,15.5341]
[1718435347241,2.5605,144.5,144.45,0.17]
[1718435347448,7.25,144.47,144.45,0.17]
[1718435349637,7.25,144.46,144.44,15.1941]
[1718435354153,7.25,144.45,144.43,8.34619835]
[1718435354331,7.25,144.45,144.43,8.00619835]
[1718435354941,7.25,144.44,144.43,8.00619835]
[1718435358355,2.5614,144.45,144.43,8.00619835]
[1718435358528,7.25,144.44,144.43,8.00619835]
[1718435358848,2.5614,144.45,144.43,8.00619835]
[1718435359050,7.25,144.44,144.43,8.00619835]
[1718435361852,9.8116,144.44,144.43,8.00619835]
[1718435362347,7.25,144.44,144.43,8.00619835]
[1718435362524,9.8116,144.44,144.43,8.00619835]
[1718435364656,7.25,144.44,144.43,8.00619835]
[1718435365761,25.6146,144.45,144.43,8.00619835]
[1718435365960,7.25,144.44,144.43,8.00619835]
[1718435366659,2.5615,144.45,144.43,8.00619835]
[1718435366959,7.25,144.44,144.43,8.00619835]
[1718435368225,7.25,144.44,144.35,112.15061074]
[1718435368226,14.5,144.44,144.35,6.6426]
[1718435368428,7.6871,144.4,144.35,6.6426]
[1718435368631,29.0,144.41,144.35,6.6426]
[1718435368854,16.2742,144.45,144.35,106.6426]
[1718435369038,7.25,144.4,144.35,113.8926]
[1718435369239,2.5617,144.44,144.35,113.8926]
[1718435369441,7.25,144.4,144.35,113.8926]
[1718435369931,7.25,144.4,144.36,0.68]
[1718435371560,12.3759,144.37,144.34,15.4822]
[1718435371744,29.0,144.41,144.34,15.4822]
[1718435371745,7.25,144.36,144.34,15.4822]
[1718435371944,2.5625,144.39,144.34,15.4822]
[1718435372140,7.25,144.38,144.34,15.4822]
[1718435375877,2.5621,144.41,144.35,1.1054356]
[1718435376078,7.25,144.38,144.35,1.2754356]
[1718435376282,7.25,144.38,144.35,0.34]
[1718435376658,7.25,144.36,144.34,15.4822]
[1718435377495,7.25,144.37,144.34,15.4822]
[1718435379091,7.25,144.36,144.34,15.4822]
[1718435379963,25.6221,144.41,144.34,15.4822]
[1718435380186,7.25,144.37,144.34,15.4822]
[1718435381986,100.0,144.42,144.34,15.4822]
[1718435381987,7.6856,144.43,144.36,0.17]
[1718435382192,2.5619,144.42,144.36,0.34]
[1718435382403,7.25,144.39,144.36,0.34]
[1718435382566,2.5619,144.42,144.36,0.34]
[1718435382763,7.25,144.39,144.36,0.34]
[1718435383593,7.25,144.38,144.36,0.34]
[1718435385496,2.5622,144.41,144.36,0.34]
[1718435385700,7.25,144.38,144.36,0.34]
[1718435389777,7.25,144.39,144.36,0.34]
[1718435390799,7.25,144.38,144.36,0.34]
[1718435391582,7.25,144.39,144.36,0.34]
[1718435392979,2.5621,144.41,144.36,0.34]
[1718435393303,7.25,144.39,144.36,0.34]
[1718435395887,12.81,144.42,144.36,0.34]
[1718435396088,7.25,144.39,144.36,0.34]
[1718435396701,7.689,144.36,144.35,0.17]
[1718435396900,102.562,144.42,144.35,0.51]
[1718435397107,7.25,144.38,144.35,0.51]
[1718435397304,7.6865,144.41,144.35,0.51]
[1718435397493,7.25,144.38,144.35,0.51]
[1718435398077,2.5622,144.41,144.35,0.51]
[1718435398394,7.25,144.4,144.36,0.34]
[1718435398698,7.25,144.4,144.37,0.34]
[1718435400105,2.5616,144.44,144.38,7.59]
[1718435400316,2.5615,144.45,144.4,0.17]
[1718435400605,14.9348,144.44,144.4,1.20618016]
[1718435400815,7.25,144.43,144.4,1.20618016]
[1718435401181,100.0,144.47,144.36,22.2339]
[1718435401408,17.9355,144.41,144.36,22.4039]
[1718435401626,7.25,144.4,144.37,0.34]
[1718435402123,7.6854,144.43,144.37,0.34]
[1718435402291,2.562,144.42,144.37,0.34]
[1718435402493,7.25,144.4,144.37,1.72358541]
[1718435402829,7.25,144.42,144.38,0.17]
[1718435403024,7.25,144.42,144.38,0.34]
[1718435403025,9.8119,144.42,144.38,0.34]
[1718435403225,7.25,144.4,144.37,0.34]
[1718435404018,7.25,144.41,144.37,0.34]
[1718435404615,9.8121,144.41,144.37,0.34]
[1718435404817,2.5621,144.41,144.37,0.34]
[1718435405016,9.8121,144.41,144.37,0.34]
[1718435405215,7.25,144.4,144.37,0.34]
[1718435406409,2.5621,144.41,144.37,0.34]
[1718435406612,7.25,144.4,144.37,0.34]
[1718435407213,7.25,144.39,144.36,16.2223]
[1718435407799,7.25,144.39,144.35,0.34]
[1718435407995,7.25,144.38,144.35,0.17]
[1718435408297,7.25,144.38,144.33,15.8823]
[1718435409128,7.25,144.38,144.33,23.1323]
[1718435409627,7.25,144.38,144.34,0.68]
[1718435410343,7.25,144.39,144.34,0.68]
[1718435410705,7.25,144.4,144.34,7.93]
[1718435411199,7.25,144.4,144.34,0.68]
[1718435411528,15.373,144.41,144.34,0.68]
[1718435411529,7.25,144.39,144.34,0.68]
[1718435412918,5.1247,144.4,144.34,0.68]
[1718435413130,7.25,144.38,144.34,0.68]
[1718435415926,2.5624,144.4,144.34,0.68]
[1718435416131,7.25,144.38,144.34,0.68]
[1718435418217,2.5624,144.4,144.34,0.68]
[1718435418417,30.3098,144.41,144.34,0.68]
[1718435418418,7.25,144.38,144.34,0.68]
[1718435418619,7.25,144.39,144.34,0.68]
[1718435419224,2.5621,144.41,144.34,7.93]
[1718435419414,7.25,144.4,144.34,7.93]
[1718435419816,7.25,144.39,144.34,0.68]
[1718435421534,7.25,144.38,144.34,0.68]
[1718435424241,7.25,144.38,144.34,0.51]
[1718435424430,7.25,144.38,144.34,0.34]
[1718435425946,2.5621,144.41,144.34,0.34]
[1718435426241,9.8123,144.4,144.34,7.59]
[1718435426430,7.25,144.39,144.34,0.34]
[1718435426744,7.25,144.39,144.34,1.31988071]
[1718435427043,7.687,144.4,144.34,0.34]
[1718435427247,7.25,144.38,144.34,0.34]
[1718435428438,7.25,144.37,144.33,16.2223]
[1718435428645,7.25,144.36,144.33,16.0523]
[1718435428842,7.25,144.35,144.32,0.17]
[1718435429025,7.25,144.35,144.3,22.7362]
[1718435429229,7.25,144.35,144.3,15.4862]
[1718435429545,7.25,144.35,144.3,22.7362]
[1718435429845,7.6882,144.38,144.31,7.25]
[1718435430050,7.25,144.36,144.32,0.68]
[1718435430735,6.6084,144.41,144.32,0.68]
[1718435430931,7.25,144.37,144.32,7.93]
[1718435432249,7.25,144.38,144.32,7.93]
[1718435432737,7.25,144.38,144.34,0.17]
[1718435433045,7.25,144.38,144.34,0.51]
[1718435434446,17.9367,144.4,144.34,0.51]
[1718435434447,2.5624,144.4,144.34,0.51]
[1718435434648,2.5625,144.39,144.35,15.6562]